bitfinex-derivatives/quotes_BNBF0:USTF0_20250708
["timestamp","ask_amount","ask_price","bid_price","bid_amount"]
[1752015958133,1.70098147,659.61,659.14,1.823]
[1752015961231,2.26997214,659.74,659.14,1.823]
[1752015961232,1.70098147,659.6,659.14,1.823]
[1752015963435,1.70098147,659.59,659.14,1.823]
[1752015963633,1.70098147,659.6,659.14,1.823]
[1752015965538,1.70098147,659.6,659.13,0.26387925]
[1752015966238,1.70098147,659.58,659.13,0.26387925]
[1752015967235,1.70098147,659.57,659.13,0.26387925]
[1752015969339,1.70098147,659.56,659.14,2.293]
[1752015973439,1.70098147,659.55,659.14,2.293]
[1752015973643,1.70098147,659.56,659.14,2.293]
[1752015974339,1.70098147,659.55,659.14,2.293]
[1752015976445,1.70098147,659.64,659.14,2.293]
[1752015981349,1.70098147,659.63,659.14,2.293]
[1752015981749,1.70098147,659.64,659.14,2.293]
[1752015982452,1.70098147,659.63,659.14,2.293]
[1752015983051,1.70098147,659.64,659.14,2.293]
[1752015983252,1.70098147,659.63,659.14,2.293]
[1752015984354,1.70098147,659.64,659.14,2.293]
[1752015986356,1.70098147,659.58,659.14,2.293]
[1752015988357,1.70098147,659.59,659.14,2.293]
[1752015989553,1.70098147,659.58,659.14,2.293]
[1752015992954,1.70098147,659.57,659.14,2.293]
[1752015993258,1.699453,659.57,659.14,2.293]
[1752015995360,1.699453,659.57,659.13,0.26387925]
[1752015997763,1.699453,659.57,659.14,2.768]
[1752015999362,1.699453,659.56,659.14,2.768]
[1752016001357,1.699453,659.54,659.14,2.768]
[1752016002363,1.699453,659.53,659.14,2.768]
[1752016004464,1.699453,659.52,659.14,2.768]
[1752016006263,1.699453,659.51,659.14,2.768]
[1752016006762,3.40495821,659.73,659.14,2.768]
[1752016006763,1.699453,659.52,659.14,2.768]
[1752016008265,1.699453,659.51,659.14,2.768]
[1752016008665,1.699453,659.52,659.14,2.768]
[1752016009367,1.699453,659.51,659.14,2.768]
[1752016010366,1.699453,659.5,659.14,2.768]
[1752016012978,1.699453,659.49,659.14,2.768]
[1752016015380,1.699453,659.48,659.14,2.768]
[1752016016581,1.699453,659.47,659.14,2.768]
[1752016018079,1.699453,659.49,659.14,2.768]
[1752016018681,1.699453,659.48,659.14,2.768]
[1752016021988,1.699453,659.5,659.14,2.768]
[1752016023287,1.699453,659.51,659.14,2.768]
[1752016027791,0.26385424,659.97,659.14,2.768]
[1752016027792,1.699453,659.49,659.14,2.768]
[1752016030093,0.26385424,659.97,659.14,2.768]
[1752016030094,1.699453,659.5,659.14,2.768]
[1752016030496,1.699453,659.51,659.14,2.768]
[1752016030791,1.699453,659.5,659.14,2.768]
[1752016033695,1.699453,659.49,659.14,2.768]
[1752016034696,1.699453,659.53,659.14,2.768]
[1752016036894,1.699453,659.54,659.14,2.768]
[1752016041298,1.699453,659.55,659.14,2.768]
[1752016041794,1.699453,659.57,659.14,2.768]
[1752016042298,1.699453,659.58,659.14,2.768]
[1752016044498,1.699453,659.56,659.14,2.768]
[1752016044900,1.699453,659.56,659.13,0.26387925]
[1752016046902,1.699453,659.55,659.13,0.26387925]
[1752016047800,1.699453,659.56,659.13,0.26387925]
[1752016048605,1.699453,659.56,659.14,1.725]
[1752016050102,1.699453,659.54,659.14,1.725]
[1752016054511,1.699453,659.53,659.14,1.725]
[1752016054809,1.699453,659.54,659.14,1.725]
[1752016055009,1.699453,659.53,659.14,1.725]
[1752016055209,1.699453,659.54,659.14,1.725]
[1752016055509,1.699453,659.52,659.14,1.725]
[1752016055809,3.40495821,659.74,659.14,1.725]
[1752016055810,1.699453,659.53,659.14,1.725]
[1752016061314,1.699453,659.55,659.14,1.725]
[1752016062112,1.70315187,659.56,659.14,1.725]
[1752016062616,1.70315187,659.57,659.14,1.725]
[1752016063411,1.70315187,659.55,659.14,1.725]
[1752016071321,1.70315187,659.54,659.14,1.725]
[1752016072022,1.70315187,659.53,659.14,1.725]
[1752016072521,1.70315187,659.52,659.14,1.725]
[1752016077321,1.70315187,659.61,659.14,1.725]
[1752016077722,1.70315187,659.72,659.14,1.725]
[1752016078520,1.70315187,659.73,659.14,1.725]
[1752016079325,1.70315187,659.74,659.14,1.725]
[1752016080626,1.70315187,659.64,659.14,1.725]
[1752016081625,1.70315187,659.65,659.14,1.725]
[1752016083429,1.70315187,659.66,659.14,1.725]
[1752016083625,1.70315187,659.68,659.14,1.725]
[1752016084426,1.70315187,659.69,659.14,1.725]
[1752016086630,1.70315187,659.7,659.14,1.725]
[1752016088329,0.26382324,660.15,659.14,1.725]
[1752016088330,1.70315187,659.71,659.14,1.725]
[1752016090432,0.26382324,660.15,659.14,1.725]
[1752016090433,1.70315187,659.76,659.14,1.725]
[1752016091629,1.70315187,659.78,659.14,1.725]
[1752016092432,1.70315187,659.83,659.14,1.725]
[1752016093434,1.70315187,659.84,659.14,1.725]
[1752016093636,1.70315187,659.83,659.14,1.725]
[1752016094334,1.70315187,659.84,659.14,1.725]
[1752016095740,1.69955178,659.84,659.14,1.725]
[1752016097340,1.69955178,659.85,659.14,1.725]
[1752016099238,1.69955178,659.83,659.14,1.725]
[1752016099537,2.26997214,659.99,659.14,1.725]
[1752016099538,1.69955178,659.84,659.14,1.725]
[1752016099740,1.69955178,659.83,659.14,1.725]
[1752016100338,1.69955178,659.81,659.14,1.725]
[1752016101138,1.69955178,659.79,659.14,1.725]
[1752016101441,1.69955178,659.8,659.14,1.725]
[1752016105244,1.69955178,659.85,659.14,1.725]
[1752016105441,1.69955178,659.86,659.14,1.725]
[1752016105648,1.69955178,659.92,659.14,1.725]
[1752016107547,1.69955178,659.93,659.14,1.725]
[1752016107749,1.69955178,659.93,659.13,0.26387925]
[1752016108347,1.69955178,659.92,659.13,0.26387925]
[1752016108748,1.69955178,659.93,659.13,0.26387925]
[1752016109451,1.69955178,659.99,659.13,0.26387925]
[1752016109647,1.6971376,659.99,659.13,0.26387925]
[1752016110953,1.6971376,659.99,659.14,1.954]
[1752016115156,1.6971376,659.97,659.14,1.954]
[1752016115356,1.6971376,659.96,659.14,1.954]
[1752016115655,1.6971376,659.95,659.14,1.954]
[1752016118662,1.6971376,659.94,659.14,4.21672855]
[1752016119160,1.6971376,659.92,659.17,2.26272855]
[1752016120161,1.6971376,659.95,659.14,1.954]
[1752016127765,1.6971376,659.94,659.14,1.954]
[1752016127960,1.6971376,659.94,659.13,0.26387925]
[1752016128265,1.6971376,659.93,659.13,0.26387925]
[1752016130166,1.6971376,659.91,659.17,2.26272855]
[1752016130466,1.6971376,659.91,659.18,2.26272855]
[1752016130666,1.6971376,659.91,659.18,4.62772855]
[1752016131364,1.6971376,659.91,659.19,2.26272855]
[1752016133270,1.6971376,659.92,659.18,2.365]
[1752016133565,1.6971376,659.93,659.18,2.365]
[1752016134364,1.6971376,659.84,659.18,2.365]
[1752016136267,1.6971376,659.84,659.21,0.26376925]
[1752016136466,1.6971376,659.83,659.21,0.26376925]
[1752016138273,2.26997214,659.96,659.21,0.26376925]
[1752016138474,1.69853521,659.88,659.21,0.26376925]
[1752016141378,1.69853521,659.87,659.21,0.26376925]
[1752016143279,1.69853521,659.85,659.21,0.26376925]
[1752016145381,1.69853521,659.84,659.21,0.26376925]
[1752016146581,1.69853521,659.84,659.21,2.5264978]
[1752016147381,1.69853521,659.83,659.21,2.5264978]
[1752016148480,1.69853521,659.84,659.21,0.26376925]
[1752016149382,1.69853521,659.83,659.21,0.26376925]
[1752016149678,1.69853521,659.83,659.21,2.5264978]
[1752016150378,1.69853521,659.84,659.21,0.26376925]
[1752016150580,1.69853521,659.83,659.21,0.26376925]
[1752016151077,1.69853521,659.84,659.21,0.26376925]
[1752016151279,1.69853521,659.84,659.21,2.5264978]
[1752016152482,1.69853521,659.83,659.22,2.26272855]
[1752016155286,1.69853521,659.83,659.21,2.5264978]
[1752016156587,1.69853521,659.83,659.22,2.385]
[1752016158485,1.69853521,659.82,659.22,4.64772855]
[1752016160186,1.69853521,659.81,659.26,2.26272855]
[1752016162486,1.69853521,659.8,659.26,2.26272855]
[1752016164596,1.69853521,659.8,659.27,2.26272855]
[1752016165194,1.69853521,659.79,659.28,2.26272855]
[1752016165593,1.69853521,659.79,659.29,2.26272855]
[1752016175402,1.69853521,659.78,659.29,2.26272855]
[1752016184415,1.69853521,659.78,659.3,2.26272855]
[1752016190421,1.69853521,659.77,659.3,2.26272855]
[1752016195422,1.69853521,659.77,659.31,2.26272855]
[1752016196324,1.69853521,659.76,659.31,2.26272855]
[1752016197421,1.69853521,659.76,659.22,2.385]
[1752016197422,1.69853521,659.76,659.32,2.26272855]
[1752016199929,1.69853521,659.75,659.32,2.26272855]
[1752016200630,1.69853521,659.76,659.32,2.26272855]
[1752016202427,1.69853521,659.76,659.33,2.625]
[1752016207329,1.69853521,659.76,659.33,4.88772855]
[1752016208130,1.69853521,659.76,659.33,2.625]
[1752016208331,1.69853521,659.76,659.33,4.88772855]
[1752016208531,1.69853521,659.75,659.33,2.625]
[1752016208831,1.69853521,659.76,659.33,2.625]
[1752016213840,1.69853521,659.8,659.33,2.625]
[1752016215944,1.69853521,659.75,659.33,2.625]
[1752016216237,1.69853521,659.76,659.33,2.625]
[1752016217139,1.69853521,659.77,659.33,2.625]
[1752016217641,1.69853521,659.76,659.33,2.625]
[1752016221142,1.69853521,659.77,659.33,2.625]
[1752016223847,1.69853521,659.73,659.33,2.625]
[1752016225243,1.69853521,659.72,659.33,2.625]
[1752016226143,1.69853521,659.73,659.33,2.625]
[1752016233650,1.69853521,659.74,659.33,2.625]
[1752016236547,1.69853521,659.74,659.24,2.26272855]
[1752016238351,1.69853521,659.74,659.23,2.26272855]
[1752016238952,1.69853521,659.74,659.24,2.038]
[1752016239852,1.69853521,659.85,659.24,2.038]
[1752016248858,1.69853521,659.84,659.24,2.038]
[1752016249763,1.69853521,659.8,659.24,2.038]
[1752016255264,1.69853521,659.79,659.24,2.038]
[1752016255667,1.69853521,659.78,659.24,2.038]
[1752016258070,1.69853521,659.78,659.21,0.26376925]
[1752016259672,1.69853521,659.75,659.25,2.26272855]
[1752016259868,1.69853521,659.76,659.26,2.26272855]
[1752016260469,1.69853521,659.76,659.27,2.469]
[1752016260768,1.69853521,659.92,659.36,2.26272855]
[1752016261473,1.69853521,659.93,659.35,2.26272855]
[1752016262272,1.69853521,659.92,659.36,2.26272855]
[1752016262473,1.69853521,659.93,659.35,2.26272855]
[1752016262770,1.69853521,660.01,659.27,2.469]
[1752016262974,0.26373526,660.43,659.27,2.469]
[1752016262975,1.69853521,660.05,659.27,2.469]
[1752016263273,1.69853521,660.06,659.27,2.469]
[1752016264474,1.69853521,660.07,659.27,2.469]
[1752016265269,1.69853521,660.08,659.27,2.469]
[1752016265472,3.40495821,660.45,659.27,2.469]
[1752016265473,1.69853521,660.16,659.27,4.73172855]
[1752016266274,1.69853521,660.18,659.27,2.469]
[1752016267070,1.69853521,660.17,659.27,2.469]
[1752016267474,1.69853521,660.18,659.27,2.469]
[1752016268172,1.69853521,660.19,659.27,2.469]
[1752016269372,1.69853521,660.14,659.39,2.26272855]
[1752016270174,1.69853521,660.14,659.38,2.26272855]
[1752016270475,1.69853521,660.14,659.37,2.26272855]
[1752016270874,1.69853521,660.15,659.36,2.26272855]
[1752016271072,1.69853521,660.15,659.34,2.26272855]
[1752016271278,1.69853521,660.16,659.33,2.26272855]
[1752016272477,1.69853521,660.18,659.27,4.73172855]
[1752016273474,1.69853521,660.18,659.27,2.469]
[1752016274775,1.69853521,660.17,659.27,4.73172855]
[1752016275179,1.69853521,660.17,659.27,2.469]
[1752016281181,0.26367831,660.54,659.27,2.469]
[1752016281182,1.69853521,660.16,659.27,2.469]
[1752016281385,1.69853521,660.17,659.27,2.469]
[1752016282286,1.69853521,660.15,659.28,2.26272855]
[1752016283487,1.69853521,660.15,659.27,4.73172855]
[1752016286886,1.69853521,660.16,659.27,2.469]
[1752016289793,1.69316879,660.16,659.27,2.469]
[1752016291495,1.69316879,660.15,659.28,2.26272855]
[1752016291699,1.69316879,660.14,659.28,2.26272855]
[1752016293098,1.69316879,660.14,659.27,2.469]
[1752016293099,1.69316879,660.14,659.29,2.26272855]
[1752016293296,1.69316879,660.14,659.28,2.26272855]
[1752016294395,1.69316879,660.14,659.29,2.26272855]
[1752016296699,1.69316879,660.13,659.31,2.26272855]
[1752016297100,2.26997214,660.24,659.31,2.26272855]
[1752016297300,1.69351088,660.13,659.32,2.26272855]
[1752016299400,1.69351088,660.13,659.33,2.26272855]
[1752016302099,1.69351088,660.13,659.34,2.26272855]
[1752016304107,1.69351088,660.13,659.35,2.26272855]
[1752016306106,1.69351088,660.12,659.36,2.26272855]
[1752016307107,1.69351088,660.12,659.37,2.26272855]
[1752016309206,1.69351088,660.12,659.38,2.26272855]
[1752016310210,1.69351088,660.11,659.39,2.26272855]
[1752016311310,1.69351088,660.11,659.4,2.26272855]
[1752016312211,1.69351088,660.11,659.3,3.39443546]
[1752016312212,1.69351088,660.11,659.41,2.26272855]
[1752016313109,1.69351088,660.11,659.43,2.26272855]
[1752016314314,1.69351088,660.1,659.44,2.26272855]
[1752016315214,1.69351088,660.09,659.44,2.26272855]
[1752016315514,1.69351088,660.09,659.45,2.26272855]
[1752016316316,1.69351088,660.13,659.3,2.26272855]
[1752016316611,1.69351088,660.13,659.31,2.26272855]
[1752016316818,1.69351088,660.1,659.28,2.26272855]
[1752016317012,1.69351088,660.07,659.27,2.469]
[1752016317311,1.69351088,660.06,659.27,2.469]
[1752016317513,1.69351088,660.05,659.27,2.469]
[1752016318111,1.69351088,660.04,659.27,4.73172855]
[1752016318512,2.26997214,660.2,659.27,4.73172855]
[1752016318716,1.70023757,660.04,659.27,4.73172855]
[1752016319113,1.70023757,660.01,659.29,2.26272855]
[1752016319412,1.70023757,660.02,659.29,2.26272855]
[1752016319615,1.70023757,660.02,659.21,0.26376925]
[1752016319616,1.70023757,660.02,659.28,2.26272855]
[1752016321412,1.70023757,660.01,659.29,2.26272855]
[1752016322215,1.70023757,660.02,659.28,2.26272855]
[1752016322413,1.70023757,660.01,659.3,2.475]
[1752016326017,1.70023757,659.97,659.39,2.26272855]
[1752016326718,1.70023757,659.98,659.4,2.26272855]
[1752016329120,1.70023757,659.98,659.39,2.26272855]
[1752016329318,1.70023757,660.06,659.3,2.475]
[1752016331221,1.70023757,660.07,659.31,2.26272855]
[1752016336521,1.70023757,660.07,659.32,0.26367332]
[1752016337624,2.26997214,660.24,659.32,0.26367332]
[1752016338020,1.70128845,660.07,659.32,0.26367332]
[1752016339127,1.70128845,660.03,659.4,2.26272855]
[1752016339424,1.70128845,660.03,659.41,2.26272855]
[1752016340024,1.70128845,660.03,659.42,2.26272855]
[1752016341626,1.70128845,660.01,659.47,2.26272855]
[1752016344223,1.70128845,660.0,659.47,2.26272855]
[1752016351329,1.70128845,659.99,659.48,2.26272855]
[1752016351629,1.70128845,660.0,659.48,2.26272855]
[1752016354830,1.70128845,659.99,659.49,2.26272855]
[1752016355632,1.70128845,659.99,659.48,2.26272855]
[1752016356332,1.70128845,659.99,659.49,2.26272855]
[1752016358633,1.70128845,659.99,659.5,2.011]
[1752016374542,1.70128845,659.98,659.5,2.011]
[1752016377050,1.70128845,659.98,659.5,4.27372855]
[1752016378248,1.70128845,659.99,659.5,2.011]
[1752016384154,1.70128845,659.98,659.5,2.011]
[1752016388150,1.70128845,659.96,659.52,2.26272855]
[1752016390055,1.70128845,659.97,659.5,4.27372855]
[1752016390253,1.70128845,659.96,659.51,2.26272855]
[1752016390456,1.70128845,659.96,659.5,4.27372855]
[1752016390957,1.70128845,659.96,659.51,2.26272855]
[1752016397561,1.70128845,659.96,659.53,2.26272855]
[1752016401268,1.70128845,659.95,659.53,2.26272855]
[1752016404966,0.26367831,660.54,659.5,2.011]
[1752016404967,1.70128845,659.98,659.5,2.011]
[1752016405270,1.70128845,659.97,659.5,2.011]
[1752016408173,1.70128845,659.99,659.5,2.011]
[1752016409073,1.70128845,660.01,659.5,2.011]
[1752016409273,1.70128845,660.02,659.5,2.011]
[1752016412274,1.70128845,660.03,659.5,2.011]
[1752016414674,1.70128845,660.03,659.47,2.26272855]
[1752016414878,1.70128845,660.02,659.5,2.26272855]
[1752016416478,1.70128845,660.02,659.51,2.26272855]
[1752016417574,1.70128845,660.02,659.5,2.26272855]
[1752016417876,1.70128845,660.02,659.51,2.26272855]
[1752016418177,1.70128845,660.0,659.54,2.26272855]
[1752016421381,2.26997214,660.11,659.54,2.26272855]
[1752016421581,3.40495821,660.22,659.52,2.593]
[1752016421781,1.70252187,660.0,659.54,2.26087566]
[1752016422282,3.40495821,660.22,659.54,2.26087566]
[1752016422478,3.40495821,660.22,659.52,2.593]
[1752016422980,2.87758707,660.51,659.52,2.593]
[1752016423282,1.04856575,660.5,659.52,2.593]
[1752016423578,1.04856575,660.49,659.52,2.593]
[1752016423782,1.04856575,660.48,659.52,2.593]
[1752016423978,1.04854305,660.47,659.52,2.593]
[1752016424182,1.04854305,660.46,659.52,2.593]
[1752016424380,1.04854305,660.45,659.52,2.593]
[1752016424679,1.04854305,660.44,659.52,2.593]
[1752016424982,0.26367831,660.54,659.52,2.593]
[1752016424983,1.04854305,660.43,659.52,2.593]
[1752016425183,1.0485035,660.42,659.52,2.593]
[1752016425383,1.0485035,660.41,659.52,2.593]
[1752016425682,1.0485035,660.53,659.52,2.593]
[1752016425882,1.0485035,660.52,659.52,2.593]
[1752016426084,1.0485035,660.51,659.52,2.593]
[1752016426384,1.0485035,660.5,659.52,2.593]
[1752016426585,1.0485035,660.49,659.52,2.593]
[1752016426781,1.0485035,660.48,659.52,2.593]
[1752016426984,1.0485035,660.47,659.52,2.593]
[1752016427284,1.0485035,660.46,659.52,2.593]
[1752016427480,1.0485035,660.45,659.52,2.593]
[1752016427684,1.0485035,660.44,659.52,2.593]
[1752016427980,1.0485035,660.43,659.52,2.593]
[1752016428185,1.0485035,660.42,659.52,2.593]
[1752016428386,1.0485035,660.41,659.52,2.593]
[1752016428582,1.0485035,660.53,659.52,2.593]
[1752016428782,1.0485035,660.52,659.52,2.593]
[1752016428985,1.0485035,660.51,659.52,2.593]
[1752016429285,1.0485035,660.5,659.52,2.593]
[1752016429481,1.0485035,660.49,659.52,2.593]
[1752016429682,1.0485035,660.48,659.52,2.593]
[1752016429886,1.0485035,660.47,659.52,2.593]
[1752016430186,1.0485035,660.46,659.52,2.593]
[1752016430483,1.0485035,660.45,659.52,2.593]
[1752016430682,1.0485035,660.44,659.52,2.593]
[1752016430888,1.0485035,660.43,659.52,2.593]
[1752016431085,1.0485035,660.42,659.52,2.593]
[1752016431287,1.0485035,660.41,659.52,2.593]
[1752016431584,1.0485035,660.53,659.52,2.593]
[1752016431783,1.0485035,660.52,659.52,2.593]
[1752016431985,1.0485035,660.51,659.52,2.593]
[1752016432183,1.0485035,660.5,659.52,2.593]
[1752016432387,1.0485035,660.49,659.52,2.593]
[1752016432582,1.0485035,660.48,659.52,2.593]
[1752016432785,1.0485035,660.47,659.52,2.593]
[1752016432984,1.0485035,660.46,659.52,2.593]
[1752016433186,1.0485035,660.45,659.52,2.593]
[1752016433388,1.0485035,660.44,659.52,2.593]
[1752016433583,1.0485035,660.43,659.52,2.593]
[1752016433785,1.0485035,660.42,659.52,2.593]
[1752016433987,1.0485035,660.53,659.52,2.593]
[1752016434186,1.0485035,660.52,659.52,2.593]
[1752016434387,1.0485035,660.51,659.52,2.593]
[1752016434590,0.26367831,660.54,659.52,2.593]
[1752016434791,1.04852501,660.53,659.52,2.593]
[1752016435087,1.04852501,660.52,659.52,2.593]
[1752016435288,1.04852501,660.51,659.52,2.593]
[1752016435587,1.04852501,660.5,659.52,2.593]
[1752016435890,1.04852501,660.49,659.52,2.593]
[1752016436088,1.04852501,660.48,659.52,2.593]
[1752016436288,1.04852501,660.47,659.52,2.593]
[1752016436491,1.04852501,660.46,659.32,0.26367332]
[1752016436689,1.04852501,660.45,659.32,0.26367332]
[1752016436990,1.04851606,660.44,659.32,0.26367332]
[1752016437190,1.04851606,660.43,659.32,0.26367332]
[1752016437493,1.04851606,660.42,659.32,0.26367332]
[1752016437790,0.26367831,660.54,659.53,2.26064514]
[1752016437791,1.70234313,660.0,659.53,2.26064514]
[1752016438892,1.70234313,660.0,659.54,1.946]
[1752016440794,1.70234313,660.02,659.54,1.946]
[1752016450806,1.70234313,660.01,659.54,1.946]
[1752016451707,1.70234313,660.0,659.54,1.946]
[1752016455214,1.70234313,660.01,659.54,4.20664514]
[1752016457216,1.70234313,660.01,659.55,2.26064514]
[1752016458819,1.70234313,660.04,659.54,1.946]
[1752016460220,1.70234313,660.03,659.54,1.946]
[1752016466217,1.70234313,660.04,659.54,1.946]
[1752016468223,1.70234313,660.03,659.54,1.946]
[1752016468623,0.26367831,660.54,659.55,2.26064514]
[1752016468624,1.70234313,660.01,659.55,2.26064514]
[1752016469825,0.26367831,660.54,659.54,1.946]
[1752016473426,0.26367831,660.54,659.56,2.26149544]
[1752016473427,1.70311467,660.04,659.56,2.26149544]
[1752016473725,1.70311467,660.03,659.57,2.26149544]
[1752016476126,1.70311467,660.03,659.58,2.26149544]
[1752016480730,1.70311467,660.03,659.59,1.883]
[1752016481125,1.70311467,660.04,659.59,1.883]
[1752016485229,1.70311467,660.03,659.59,1.883]
[1752016495144,1.70311467,660.04,659.59,1.883]
[1752016499043,1.70311467,660.06,659.59,1.883]
[1752016499340,1.70311467,660.07,659.59,1.883]
[1752016500946,2.27081956,660.2,659.59,1.883]
[1752016501146,1.7024045,660.07,659.59,1.883]
[1752016501542,1.7024045,660.08,659.59,1.883]
[1752016503042,1.7024045,660.12,659.59,1.883]
[1752016505744,1.7024045,660.13,659.59,1.883]
[1752016508144,1.7024045,660.14,659.59,1.883]
[1752016508849,1.7024045,660.13,659.59,1.883]
[1752016509049,1.7024045,660.12,659.59,1.883]
[1752016510449,1.7024045,660.13,659.59,1.883]
[1752016510948,1.7024045,660.12,659.59,1.883]
[1752016512854,1.7024045,660.23,659.59,1.883]
[1752016513356,1.7024045,660.26,659.59,1.883]
[1752016513857,1.7024045,660.26,659.36,2.26149544]
[1752016514557,1.7024045,660.27,659.37,2.26149544]
[1752016515053,1.7024045,660.27,659.36,2.26149544]
[1752016515254,1.7024045,660.28,659.36,2.26149544]
[1752016515553,1.7024045,660.27,659.36,2.26149544]
[1752016516153,1.7024045,660.28,659.36,2.26149544]
[1752016517556,1.7024045,660.28,659.37,2.363]
[1752016518159,1.7024045,660.29,659.37,2.363]
[1752016519561,1.7024045,660.34,659.4,2.26149544]
[1752016519957,1.7024045,660.34,659.41,2.26149544]
[1752016520257,1.7024045,660.35,659.4,2.26149544]
[1752016522263,1.7024045,660.36,659.39,2.26149544]
[1752016522763,1.7024045,660.3,659.53,2.26149544]
[1752016524159,1.7024045,660.31,659.53,2.26149544]
[1752016524865,1.7024045,660.3,659.53,2.26149544]
[1752016525364,1.7024045,660.31,659.53,2.26149544]
[1752016528166,1.7024045,660.31,659.52,2.26149544]
[1752016528661,1.7024045,660.31,659.53,2.26149544]
[1752016529167,1.7024045,660.29,659.57,2.26149544]
[1752016529867,1.7024045,660.29,659.58,2.26149544]
[1752016530671,1.7024045,660.27,659.63,2.26149544]
[1752016533073,1.7024045,660.28,659.61,2.26149544]
[1752016534174,1.7024045,660.29,659.6,2.26149544]
[1752016534570,1.7024045,660.28,659.61,2.26149544]
[1752016534872,1.7024045,660.28,659.62,2.26149544]
[1752016536272,1.7024045,660.28,659.61,2.26149544]
[1752016536577,1.7024045,660.27,659.64,2.26149544]
[1752016537276,1.7024045,660.27,659.63,2.26149544]
[1752016537774,1.7024045,660.27,659.64,2.26149544]
[1752016542684,1.7024045,660.29,659.59,2.26149544]
[1752016542884,1.7024045,660.29,659.6,2.26149544]
[1752016543385,1.69777358,660.29,659.6,2.26149544]
[1752016544285,1.69777358,660.29,659.61,2.26149544]
[1752016545284,1.69777358,660.28,659.6,2.26149544]
[1752016547491,1.69777358,660.28,659.61,2.26149544]
[1752016548092,1.69777358,660.29,659.61,2.26149544]
[1752016548292,1.69777358,660.3,659.61,2.26149544]
[1752016548492,1.69777358,660.3,659.62,2.26149544]
[1752016548788,1.69777358,660.3,659.62,4.22149544]
[1752016549594,1.69777358,660.31,659.62,1.96]
[1752016550294,1.69777358,660.32,659.62,1.96]
[1752016551091,1.69777358,660.31,659.62,1.96]
[1752016551392,2.27081956,660.45,659.62,1.96]
[1752016551393,1.69777358,660.32,659.62,1.96]
[1752016552596,1.69777358,660.31,659.62,1.96]
[1752016556198,1.69777358,660.3,659.62,1.96]
[1752016559198,1.69777358,660.29,659.62,1.96]
[1752016559592,1.69777358,660.28,659.63,2.26149544]
[1752016560095,1.69777358,660.28,659.64,2.26149544]
[1752016560399,1.69777358,660.27,659.66,2.26149544]
[1752016560599,1.69777358,660.28,659.67,2.26149544]
[1752016561700,1.69777358,660.27,659.69,2.26149544]
[1752016562197,1.69777358,660.27,659.7,2.26149544]
[1752016564203,1.69777358,660.26,659.7,2.26149544]
[1752016567104,1.69777358,660.26,659.71,2.26149544]
[1752016567598,1.69777358,660.31,659.62,1.96]
[1752016568701,1.70001324,660.31,659.62,1.96]
[1752016569206,1.70001324,660.3,659.62,1.96]
[1752016571310,1.70001324,660.29,659.62,1.96]
[1752016573109,1.70001324,660.28,659.62,1.96]
[1752016574712,1.70127392,660.28,659.62,1.96]
[1752016575311,1.70127392,660.27,659.62,1.96]
[1752016577117,1.70127392,660.28,659.62,1.96]
[1752016577618,1.70127392,660.25,659.69,2.26149544]
[1752016578217,1.70127392,660.24,659.69,2.26149544]
[1752016578513,1.70127392,660.24,659.7,2.26149544]
[1752016579620,1.70127392,660.25,659.71,2.26149544]
[1752016580521,1.70127392,660.25,659.62,1.96]
[1752016580522,1.70127392,660.24,659.72,2.26149544]
[1752016586421,1.70127392,660.23,659.75,2.26149544]
[1752016587120,1.70127392,660.23,659.76,2.26149544]
[1752016587321,1.70127392,660.23,659.75,2.26149544]
[1752016588921,1.70127392,660.23,659.76,2.26149544]
[1752016591317,1.70127392,660.23,659.74,2.26149544]
[1752016592222,1.70127392,660.23,659.75,2.26149544]
[1752016592421,1.70127392,660.23,659.62,1.96]
[1752016592422,1.70127392,660.24,659.74,2.26149544]
[1752016595022,1.70127392,660.24,659.73,2.26149544]
[1752016595221,1.70127392,660.24,659.74,2.26149544]
[1752016596126,1.70127392,660.24,659.73,2.26149544]
[1752016598229,1.70127392,660.23,659.76,2.26149544]
[1752016599024,1.70127392,660.22,659.75,2.26149544]
[1752016603731,1.70204545,660.22,659.75,2.26149544]
[1752016605327,1.70204545,660.21,659.75,2.26149544]
[1752016606830,1.70204545,660.21,659.76,2.433]